bitfinex-derivatives/quotes_SOLF0:USTF0_20250830
["timestamp","ask_amount","ask_price","bid_price","bid_amount"]
[1756549730729,1.58170103,202.95,202.91,8.03]
[1756549731629,1.58170103,202.95,202.9,1.54170103]
[1756549732937,1.58170103,202.95,202.91,8.03]
[1756549733434,1.58170103,202.95,202.9,8.03]
[1756549733636,1.54170103,202.95,202.89,1.54170103]
[1756549734137,1.54170103,202.95,202.9,8.03]
[1756549734438,1.54170103,202.95,202.89,1.54170103]
[1756549734838,1.54170103,202.93,202.87,8.03]
[1756549735027,1.58170103,202.93,202.89,8.03]
[1756549735232,1.54170103,202.93,202.89,8.03]
[1756549735631,1.54170103,202.93,202.88,1.54170103]
[1756549735838,1.54170103,202.93,202.89,8.03]
[1756549736033,1.54170103,202.93,202.88,1.54170103]
[1756549736637,1.54170103,202.93,202.89,8.03]
[1756549736836,1.54170103,202.93,202.88,1.54170103]
[1756549737434,1.54170103,202.93,202.87,8.03]
[1756549737628,1.54170103,202.93,202.88,1.54170103]
[1756549738130,1.54170103,202.93,202.89,8.03]
[1756549738531,1.54170103,202.93,202.88,1.54170103]
[1756549738733,1.54170103,202.89,202.87,8.03]
[1756549740733,1.54170103,202.89,202.85,1.54170103]
[1756549741341,0.04,202.9,202.83,8.03]
[1756549746542,0.04,202.9,202.83,12.13174561]
[1756549746740,0.04,202.9,202.84,8.03]
[1756549748443,2.44545281,202.9,202.84,8.03]
[1756549750237,0.04,202.89,202.84,8.03]
[1756549750637,2.40545281,202.9,202.84,8.03]
[1756549751038,0.04,202.89,202.84,8.03]
[1756549751338,2.40545281,202.9,202.84,8.03]
[1756549751540,0.04,202.89,202.84,8.03]
[1756549751741,2.40545281,202.9,202.84,8.03]
[1756549751943,0.04,202.89,202.84,8.03]
[1756549752845,0.04,202.86,202.84,8.03]
[1756549755241,2.44545281,202.87,202.84,8.03]
[1756549758248,2.44545281,202.87,202.78,4.10547425]
[1756549758445,2.44545281,202.87,202.79,7.93]
[1756549762249,2.40545281,202.84,202.79,7.93]
[1756549762450,2.40545281,202.84,202.77,7.93]
[1756549763351,1.54085048,202.82,202.77,7.93]
[1756549763650,2.40545281,202.9,202.77,7.93]
[1756549763651,0.02,202.89,202.77,7.93]
[1756549763846,1.54085048,202.81,202.76,1.54085048]
[1756549764051,1.54085048,202.81,202.76,7.93]
[1756549764252,1.54085048,202.81,202.75,7.93]
[1756549766248,1.56085048,202.79,202.76,7.93]
[1756549766449,1.54085048,202.77,202.71,7.93]
[1756549767250,1.54085048,202.75,202.7,4.10547425]
[1756549767457,1.54085048,202.73,202.71,7.93]
[1756549767755,1.56085048,202.73,202.71,7.93]
[1756549767947,1.56085048,202.73,202.69,7.93]
[1756549768549,1.54085048,202.73,202.68,1.54085048]
[1756549768749,1.54085048,202.73,202.69,7.93]
[1756549769457,2.40970238,202.75,202.69,7.93]
[1756549772555,2.42970238,202.76,202.69,7.93]
[1756549789269,1.54198447,202.74,202.69,7.93]
[1756549794076,89.16,202.78,202.71,7.54]
[1756549794270,1.54198447,202.76,202.71,7.54]
[1756549801992,1.58198447,202.76,202.71,7.54]
[1756549802393,1.54198447,202.74,202.71,7.54]
[1756549802594,0.04,202.76,202.71,7.54]
[1756549802794,1.54198447,202.74,202.69,7.54]
[1756549805196,0.04,202.76,202.69,7.54]
[1756549805397,1.54198447,202.74,202.69,7.54]
[1756549806393,0.04,202.83,202.72,1.54198447]
[1756549806591,1.54198447,202.79,202.73,7.54]
[1756549806794,3.56231111,202.78,202.73,7.54]
[1756549806994,3.56231111,202.77,202.73,7.54]
[1756549807200,1.54198447,202.79,202.73,7.54]
[1756549807494,3.56386347,202.78,202.73,7.54]
[1756549807691,3.56386347,202.77,202.74,1.54198447]
[1756549807896,1.54198447,202.81,202.75,7.91]
[1756549808089,3.56342654,202.8,202.74,5.65638748]
[1756549808290,3.56342654,202.79,202.75,7.91]
[1756549808486,3.56342654,202.78,202.74,5.65638748]
[1756549808688,1.54198447,202.81,202.75,7.91]
[1756549808890,3.56470185,202.8,202.75,7.91]
[1756549809088,3.56470185,202.79,202.75,7.91]
[1756549809286,3.56470185,202.78,202.74,5.65638748]
[1756549809492,1.54198447,202.81,202.75,7.91]
[1756549809693,3.56559176,202.8,202.75,7.91]
[1756549809896,3.56559176,202.79,202.74,5.65638748]
[1756549810095,3.56559176,202.78,202.74,5.65638748]
[1756549810297,3.56700033,202.77,202.74,5.65638748]
[1756549810497,1.54198447,202.81,202.75,7.91]
[1756549810798,3.56637937,202.8,202.74,5.65638748]
[1756549810993,3.56637937,202.79,202.74,5.65638748]
[1756549811200,3.56637937,202.78,202.74,5.65638748]
[1756549811396,3.56637937,202.77,202.74,5.65638748]
[1756549811595,1.54198447,202.81,202.74,5.65638748]
[1756549811596,120.94,202.81,202.75,7.91]
[1756549811797,1.54198447,202.78,202.75,7.91]
[1756549812102,1.54198447,202.76,202.72,7.91]
[1756549812297,3.56681513,202.75,202.71,4.11440301]
[1756549812495,3.56681513,202.75,202.72,4.11440301]
[1756549812693,3.56681513,202.75,202.72,7.91]
[1756549813201,3.56681513,202.74,202.71,7.91]
[1756549813501,3.56681513,202.73,202.71,7.91]
[1756549813701,1.54198447,202.75,202.71,7.91]
[1756549813897,3.56797548,202.74,202.7,5.65638748]
[1756549814103,1.54198447,202.75,202.71,7.91]
[1756549814104,3.56797548,202.73,202.71,7.91]
[1756549814401,1.54198447,202.75,202.7,5.65638748]
[1756549814602,3.56794381,202.74,202.71,7.91]
[1756549814899,1.54198447,202.75,202.7,5.65638748]
[1756549814900,3.56794381,202.73,202.7,5.65638748]
[1756549815097,1.54198447,202.75,202.7,5.65638748]
[1756549815404,3.56794381,202.74,202.7,5.65638748]
[1756549815600,3.56794381,202.73,202.7,5.65638748]
[1756549815795,0.03,202.74,202.71,7.91]
[1756549816000,0.03,202.72,202.7,4.11440301]
[1756549816501,5.14028186,202.71,202.68,12.02440301]
[1756549816698,1.57198447,202.71,202.69,7.91]
[1756549817003,1.54198447,202.71,202.69,7.91]
[1756549817504,3.56856369,202.7,202.69,7.91]
[1756549820494,5.11054816,202.7,202.69,7.91]
[1756549821003,5.10657084,202.7,202.69,7.91]
[1756549821200,1.54198447,202.7,202.69,7.91]
[1756549823098,1.54198447,202.74,202.69,7.91]
[1756549823303,3.56360493,202.73,202.7,7.91]
[1756549823501,3.56360493,202.72,202.69,4.11440301]
[1756549823802,1.54198447,202.74,202.69,4.11440301]
[1756549824105,3.56357672,202.73,202.69,4.11440301]
[1756549824307,3.56357672,202.72,202.7,7.91]
[1756549824499,1.54198447,202.74,202.69,4.11440301]
[1756549824700,1.54198447,202.79,202.72,1.54198447]
[1756549824898,3.56297304,202.78,202.75,1.54198447]
[1756549825101,1.54198447,202.81,202.75,1.54198447]
[1756549825707,1.54198447,202.81,202.76,7.91]
[1756549826102,1.54198447,202.81,202.75,1.54198447]
[1756549826706,1.54198447,202.81,202.76,7.91]
[1756549827003,1.54198447,202.81,202.75,1.54198447]
[1756549827404,2.40778503,202.83,202.76,7.91]
[1756549827908,0.05,202.79,202.76,7.91]
[1756549828111,0.05,202.79,202.73,7.91]
[1756549828411,2.45778503,202.83,202.75,7.91]
[1756549831405,5.50375515,202.9,202.75,7.91]
[1756549831605,331.48,202.92,202.78,7.91]
[1756549831606,89.89,202.86,202.78,7.91]
[1756549832806,0.05,202.86,202.78,7.91]
[1756549833013,0.05,202.9,202.8,2.40778503]
[1756549833212,91.5,202.89,202.81,7.91]
[1756549835215,0.05,202.9,202.81,7.91]
[1756549835615,120.91,202.9,202.81,7.91]
[1756549836116,0.05,202.9,202.81,7.91]
[1756549838710,2.40778503,202.88,202.81,7.91]
[1756549841209,0.04,202.87,202.81,7.91]
[1756549846826,120.8,202.86,202.76,7.47]
[1756549849224,2.40778503,202.88,202.78,9.87778503]
[1756549849527,120.84,202.9,202.79,7.47]
[1756549849920,0.04,202.93,202.82,7.47]
[1756549850221,0.04,202.93,202.83,7.47]
[1756549850723,0.04,202.93,202.84,7.47]
[1756549862537,0.04,202.9,202.84,7.47]
[1756549862737,2.40778503,202.88,202.79,7.47]
[1756549863931,2.44778503,202.88,202.79,7.47]
[1756549864337,2.40778503,202.85,202.79,7.47]
[1756549865742,0.04,202.87,202.79,7.47]
[1756549868239,2.40778503,202.85,202.79,7.47]
[1756549870246,0.04,202.87,202.79,7.47]
[1756549871643,0.85809395,202.94,202.79,7.47]
[1756549871644,10.69,202.91,202.79,7.47]
[1756549871947,2.40778503,202.89,202.8,7.75]
[1756549876150,2.40778503,202.89,202.8,4.08896582]
[1756549876449,2.40778503,202.89,202.81,7.75]
[1756549877150,2.45778503,202.89,202.81,7.75]
[1756549877651,0.05,202.88,202.81,7.75]
[1756549879957,2.45778503,202.86,202.8,7.75]
[1756549882355,2.40778503,202.83,202.8,7.75]
[1756549882556,2.40778503,202.83,202.76,7.75]
[1756549883863,7.91154018,202.9,202.76,7.75]
[1756549884055,2.40778503,202.81,202.76,7.75]
[1756549884355,2.40778503,202.81,202.75,7.75]
[1756549893265,2.40778503,202.78,202.72,7.75]
[1756549899467,0.04,202.77,202.72,7.75]
[1756549899667,0.04,202.77,202.68,4.08896582]
[1756549899873,0.04,202.77,202.69,7.36]
[1756549901272,2.44778503,202.75,202.69,7.36]
[1756549904667,2.44778503,202.72,202.69,7.36]
[1756549904867,2.44778503,202.72,202.64,48.74198606]
[1756549905173,2.40778503,202.72,202.65,7.36]
[1756549909370,2.40778503,202.69,202.63,4.08896582]
[1756549909569,2.40778503,202.69,202.63,7.36]
[1756549911278,0.04,202.71,202.63,7.36]
[1756549911474,2.40778503,202.7,202.63,7.36]
[1756549913478,2.40778503,202.67,202.62,7.36]
[1756549913668,2.40778503,202.67,202.61,7.36]
[1756549918881,0.04,202.69,202.61,7.36]
[1756549919083,2.44778503,202.69,202.61,7.36]
[1756549923387,2.40778503,202.66,202.6,7.36]
[1756549927289,2.40778503,202.66,202.61,7.96]
[1756549927484,2.40778503,202.66,202.6,4.08896582]
[1756549927684,2.40778503,202.66,202.61,7.96]
[1756549927883,2.40778503,202.66,202.6,4.08896582]
[1756549928485,2.40778503,202.66,202.61,7.96]
[1756549929185,0.04,202.69,202.61,7.96]
[1756549929483,2.40778503,202.67,202.61,7.96]
[1756549929685,2.40778503,202.64,202.61,7.96]
[1756549930886,2.40778503,202.64,202.57,7.96]
[1756549932187,2.40778503,202.61,202.55,7.96]
[1756549933785,2.40778503,202.58,202.55,7.96]
[1756549933986,2.40778503,202.58,202.52,7.96]
[1756549934690,2.40778503,202.55,202.49,7.96]
[1756549936185,2.40778503,202.52,202.49,7.96]
[1756549936695,2.40778503,202.52,202.44,7.96]
[1756549937086,2.40778503,202.49,202.44,7.96]
[1756549937283,2.40778503,202.49,202.41,7.96]
[1756549937687,331.7,202.6,202.41,10.36778503]
[1756549937891,2.40778503,202.53,202.42,7.96]
[1756549939096,2.40778503,202.53,202.42,10.36778503]
[1756549939298,2.40778503,202.53,202.43,7.96]
[1756549941593,2.40778503,202.5,202.43,7.96]
[1756549942994,0.06,202.49,202.43,7.96]
[1756549943595,2.40778503,202.47,202.38,7.96]
[1756549950305,2.40778503,202.43,202.32,7.96]
[1756549952401,0.06,202.44,202.34,2.40778503]
[1756549952601,2.40778503,202.45,202.35,7.96]
[1756549954504,0.06,202.44,202.35,7.96]
[1756549956803,2.40778503,202.46,202.37,7.96]
[1756549957902,2.40778503,202.46,202.39,7.69]
[1756549958296,2.46778503,202.49,202.39,7.69]
[1756549963107,0.07,202.48,202.39,7.69]
[1756549965707,2.40778503,202.46,202.39,7.69]
[1756549972609,0.07,202.48,202.39,7.69]
[1756549976411,0.07,202.48,202.4,7.69]
[1756549977309,0.07,202.48,202.4,4.09551383]
[1756549977511,0.07,202.48,202.41,7.69]
[1756549979423,0.07,202.48,202.41,11.78551383]
[1756549980122,0.07,202.48,202.42,7.69]
[1756549980325,0.07,202.48,202.42,11.78551383]
[1756549980618,2.40778503,202.5,202.43,7.69]
[1756549981322,0.07,202.49,202.43,7.69]
[1756549981520,5.50375515,202.57,202.43,7.69]
[1756549981725,2.40778503,202.51,202.46,7.69]
[1756549981928,19.74,202.56,202.42,5.42857632]
[1756549981929,2.40778503,202.48,202.43,7.69]
[1756549982128,0.07,202.47,202.42,4.09551383]
[1756549982728,0.07,202.47,202.43,7.69]
[1756549982926,0.07,202.47,202.42,4.09551383]
[1756549983326,0.07,202.47,202.43,7.69]
[1756549983924,0.07,202.47,202.42,4.09551383]
[1756549984127,2.40778503,202.45,202.4,4.09551383]
[1756549984330,0.07,202.44,202.38,4.09551383]
[1756549985429,0.07,202.44,202.37,4.09551383]
[1756549985828,2.47778503,202.42,202.38,7.69]
[1756549987730,0.06,202.41,202.37,11.79551383]
[1756549987931,2.46778503,202.39,202.35,4.09551383]
[1756549988126,2.40778503,202.39,202.35,7.7]
[1756549988540,0.06,202.38,202.35,7.7]
[1756549988827,2.40778503,202.36,202.32,7.7]
[1756549989034,0.06,202.35,202.3,4.09551383]
[1756549989230,0.06,202.35,202.31,7.7]
[1756549989535,2.40778503,202.36,202.3,4.09551383]
[1756549989833,2.40778503,202.36,202.31,7.7]
[1756549990025,2.40778503,202.36,202.3,11.79551383]
[1756549990222,2.40778503,202.36,202.3,7.7]
[1756549990628,0.06,202.35,202.28,4.09551383]
[1756549990827,0.06,202.35,202.29,7.7]
[1756549991735,2.40778503,202.36,202.29,7.7]
[1756549997236,2.40778503,202.4,202.29,7.7]
[1756549997735,18.44,202.42,202.29,7.7]
[1756549997937,2.40778503,202.36,202.29,7.7]
[1756549998934,0.06,202.35,202.29,7.7]
[1756549999438,2.40778503,202.35,202.24,2.40778503]
[1756549999642,2.40778503,202.35,202.25,7.7]
[1756550002844,2.46778503,202.35,202.25,7.7]
[1756550003643,2.40778503,202.35,202.25,7.7]
[1756550004142,2.40778503,202.35,202.25,10.10778503]
[1756550004345,2.40778503,202.35,202.26,7.7]
[1756550008343,0.06,202.34,202.26,7.7]
[1756550011655,2.40778503,202.36,202.26,7.7]
[1756550012253,2.40778503,202.36,202.27,7.7]
[1756550012847,2.46778503,202.36,202.27,7.7]
[1756550013253,34.66,202.38,202.23,7.7]
[1756550013254,2.40778503,202.3,202.23,7.7]
[1756550015453,2.46778503,202.31,202.23,7.7]
[1756550020656,2.40778503,202.28,202.18,4.09551383]
[1756550020856,2.40778503,202.28,202.19,7.7]
[1756550021063,0.04,202.29,202.19,7.7]
[1756550024260,0.04,202.29,202.19,11.79551383]
[1756550024458,0.04,202.29,202.19,4.09551383]
[1756550024761,2.44778503,202.29,202.2,7.7]
[1756550027262,2.44778503,202.29,202.21,7.7]
[1756550029166,2.44778503,202.29,202.21,4.09551383]
[1756550029363,2.44778503,202.29,202.22,7.7]
[1756550032271,2.44778503,202.29,202.22,11.79551383]
[1756550033672,2.44778503,202.29,202.23,7.7]
[1756550035272,1.54903216,202.26,202.23,7.7]
[1756550035473,1.54903216,202.26,202.24,7.7]
[1756550035670,1.54903216,202.26,202.23,4.09551383]
[1756550036274,1.54903216,202.26,202.24,7.7]
[1756550036473,1.54903216,202.26,202.23,4.09551383]
[1756550036774,1.54903216,202.26,202.22,4.09551383]
[1756550037273,1.54903216,202.26,202.23,7.7]
[1756550037473,1.54903216,202.26,202.22,4.09551383]
[1756550037674,1.54903216,202.26,202.23,7.7]
[1756550037870,1.54903216,202.26,202.22,4.09551383]
[1756550038275,1.54903216,202.26,202.23,7.7]
[1756550038470,1.54903216,202.26,202.22,4.09551383]
[1756550038869,1.54903216,202.26,202.23,7.7]
[1756550039073,1.54903216,202.26,202.22,4.09551383]
[1756550039275,1.54903216,202.26,202.23,7.7]
[1756550039779,1.54903216,202.26,202.22,4.09551383]
[1756550039980,0.04,202.29,202.23,7.7]
[1756550040278,1.54903216,202.27,202.23,4.09551383]
[1756550040789,1.54903216,202.27,202.24,7.7]
[1756550040969,1.54903216,202.27,202.23,4.09551383]
[1756550041372,1.54903216,202.27,202.24,7.7]
[1756550041578,1.54903216,202.27,202.23,4.09551383]
[1756550041781,1.54903216,202.27,202.24,7.7]
[1756550041982,1.54903216,202.27,202.23,4.09551383]
[1756550042179,332.24,202.37,202.24,7.7]
[1756550042480,1.54903216,202.29,202.24,5.64454599]
[1756550042781,1.54903216,202.29,202.25,7.7]
[1756550042983,1.54903216,202.32,202.27,7.7]
[1756550043383,2.45913125,202.34,202.27,7.7]
[1756550047186,2.45913125,202.34,202.27,11.79551383]
[1756550048284,0.04,202.34,202.28,7.53]
[1756550048488,2.41913125,202.34,202.28,7.53]
[1756550049579,0.07,202.37,202.28,7.53]
[1756550049785,2.41913125,202.36,202.29,7.53]
[1756550051680,80.90784339,202.41,202.29,7.53]
[1756550051885,80.90784339,202.41,202.32,7.53]
[1756550051886,2.41913125,202.39,202.32,7.53]
[1756550052187,2.41913125,202.39,202.32,11.62551383]
[1756550052390,2.41913125,202.39,202.33,7.53]
[1756550052887,2.48913125,202.36,202.33,7.53]
[1756550053095,0.07,202.35,202.31,7.53]
[1756550053282,0.07,202.32,202.29,7.53]
[1756550054385,2.41913125,202.31,202.29,7.53]
[1756550055088,2.48913125,202.31,202.25,4.09551383]
[1756550055493,2.48913125,202.31,202.25,7.53]
[1756550056985,2.48913125,202.28,202.25,7.53]
[1756550059093,2.41913125,202.28,202.23,7.53]
[1756550059288,2.41913125,202.28,202.22,4.1577757]
[1756550059684,2.41913125,202.28,202.23,7.53]
[1756550059882,2.41913125,202.28,202.22,4.1577757]
[1756550060287,2.41913125,202.28,202.23,7.53]
[1756550060490,2.41913125,202.28,202.22,4.1577757]
[1756550060688,2.41913125,202.28,202.22,11.6877757]
[1756550061987,0.07,202.24,202.21,4.1577757]
[1756550062191,0.07,202.24,202.21,11.6877757]
[1756550062490,2.41913125,202.25,202.21,4.1577757]
[1756550062692,8.23913125,202.28,202.2,7.53]
[1756550062887,8.23913125,202.28,202.21,7.53]
[1756550063391,8.30913125,202.28,202.21,7.53]
[1756550063896,2.41913125,202.25,202.21,7.53]
[1756550064084,0.07,202.24,202.19,7.53]
[1756550064291,2.41913125,202.22,202.19,7.53]
[1756550064693,2.41913125,202.22,202.16,11.6877757]
[1756550065189,2.41913125,202.22,202.16,7.53]
[1756550065789,6.47913125,202.25,202.18,7.53]
[1756550066094,2.41913125,202.25,202.18,7.53]
[1756550067587,2.48913125,202.22,202.18,7.53]
[1756550068395,2.41913125,202.21,202.18,7.53]
[1756550068993,2.48913125,202.21,202.18,7.53]
[1756550069192,2.41913125,202.21,202.15,11.6877757]
[1756550069390,2.41913125,202.21,202.15,7.53]
[1756550069788,2.41913125,202.18,202.14,7.53]
[1756550069991,2.41913125,202.18,202.13,4.1577757]
[1756550070401,2.41913125,202.18,202.12,4.1577757]
[1756550070799,2.41913125,202.18,202.13,11.6877757]
[1756550070999,2.41913125,202.18,202.13,4.1577757]
[1756550071297,2.41913125,202.18,202.14,7.53]
[1756550071500,2.41913125,202.18,202.13,4.1577757]
[1756550071696,2.41913125,202.18,202.14,7.53]
[1756550072198,2.41913125,202.18,202.13,4.1577757]
[1756550072389,2.41913125,202.18,202.13,7.53]
[1756550072793,2.41913125,202.18,202.12,4.1577757]
[1756550072996,2.41913125,202.18,202.13,7.53]
[1756550073592,2.41913125,202.18,202.12,4.1577757]
[1756550074205,2.41913125,202.18,202.13,7.53]
[1756550074604,0.07,202.17,202.13,7.53]
[1756550074803,2.41913125,202.18,202.11,4.1577757]
[1756550075103,2.41913125,202.18,202.12,7.53]
[1756550076099,2.41913125,202.15,202.09,4.1577757]
[1756550076300,2.41913125,202.15,202.09,7.53]
[1756550078302,10.16913125,202.18,202.09,7.53]
[1756550078303,2.41913125,202.14,202.09,7.53]
[1756550078703,2.41913125,202.14,202.06,4.1577757]
[1756550078903,2.41913125,202.14,202.07,7.64]
[1756550079901,2.41913125,202.14,202.08,7.64]
[1756550081503,2.41913125,202.13,202.06,4.1577757]
[1756550081706,2.41913125,202.13,202.07,7.64]
[1756550085909,2.41913125,202.12,202.04,7.64]
[1756550087906,0.08,202.11,202.04,7.64]
[1756550090204,2.41913125,202.1,202.04,7.64]
[1756550090510,2.41913125,202.14,202.04,7.64]
[1756550092504,0.08,202.15,202.04,7.64]
[1756550092710,2.41913125,202.14,202.04,7.64]
[1756550093209,2.66,202.18,202.04,7.64]
[1756550093509,2.41913125,202.09,201.99,2.41913125]
[1756550093710,2.41913125,202.09,202.0,7.64]
[1756550093910,2.41913125,202.09,202.0,4.455]
[1756550094213,2.41913125,202.09,202.01,7.64]
[1756550100814,2.41913125,202.02,201.96,4.13235713]
[1756550101014,2.41913125,202.02,201.95,7.64]
[1756550101622,2.49913125,202.02,201.95,7.64]
[1756550106114,0.08,202.02,201.95,7.64]
[1756550106315,2.49913125,202.02,201.95,7.64]
[1756550106517,2.41913125,202.02,201.95,7.64]
[1756550113830,0.09,202.09,201.95,7.64]
[1756550114031,2.41913125,202.03,201.95,7.64]
[1756550116530,0.09,202.06,201.95,7.64]
[1756550116834,2.41913125,202.08,201.97,7.35]
[1756550117034,2.41913125,202.08,202.0,7.35]
[1756550118234,2.50913125,202.11,202.0,4.455]
[1756550118428,2.50913125,202.11,202.01,7.35]
[1756550121728,2.41913125,202.1,202.01,7.35]
[1756550122539,2.50913125,202.11,202.01,7.35]
[1756550125339,2.50913125,202.11,202.02,7.35]
[1756550126540,0.08,202.14,202.02,2.41913125]
[1756550126738,2.41913125,202.13,202.04,11.48235713]
[1756550126937,0.08,202.12,202.04,7.35]
[1756550131740,0.08,202.12,202.04,11.48235713]
[1756550131939,0.08,202.12,202.05,7.35]
[1756550136846,0.08,202.09,202.03,4.15784204]
[1756550137044,2.41913125,202.07,202.02,4.15784204]
[1756550137243,2.49913125,202.07,202.03,8.06]
[1756550137439,0.08,202.06,202.02,8.06]
[1756550137641,2.41913125,202.04,201.99,12.21784204]
[1756550137836,0.08,202.03,201.99,8.06]
[1756550138137,2.41913125,202.04,201.98,4.15784204]
[1756550138336,2.41913125,202.04,201.98,12.21784204]
[1756550140245,2.41913125,202.04,201.95,5.42857632]
[1756550140246,2.41913125,201.99,201.92,8.06]
[1756550140544,2.49913125,201.99,201.92,8.06]
[1756550142346,2.49913125,201.96,201.92,8.06]
[1756550142844,0.08,201.92,201.86,8.06]
[1756550143042,2.41913125,201.9,201.86,8.06]
[1756550143441,2.49913125,201.9,201.86,8.06]
[1756550144745,2.41913125,201.9,201.82,8.06]
[1756550144945,2.41913125,201.91,201.82,8.06]
[1756550145150,2.41913125,201.91,201.82,4.15784204]
[1756550145347,2.41913125,201.91,201.83,8.06]
[1756550145551,2.41913125,201.91,201.84,8.06]
[1756550146649,0.08,201.93,201.84,8.06]
[1756550146851,2.41913125,201.91,201.84,8.06]
[1756550147949,2.41913125,201.94,201.84,8.06]
[1756550149045,2.41913125,201.97,201.87,8.06]
[1756550155055,2.41913125,201.97,201.86,11.03507329]
[1756550155056,2.49913125,202.0,201.9,8.06]
[1756550159358,2.49913125,202.0,201.91,8.06]
[1756550163473,0.08,202.0,201.91,8.06]
[1756550164970,2.49913125,202.07,201.97,8.06]
[1756550167864,2.49913125,202.07,201.97,10.47913125]
[1756550168069,2.49913125,202.07,201.98,7.37]
[1756550168670,0.08,202.07,201.98,7.37]
[1756550170366,334.99913125,202.08,201.98,7.37]
[1756550170367,0.07,202.04,201.98,7.37]
[1756550170570,0.07,202.01,201.95,7.37]
[1756550171575,2.41913125,202.02,201.95,7.37]
[1756550171769,2.48913125,202.05,201.95,7.37]
[1756550175477,2.48913125,202.05,201.97,7.37]
[1756550175478,0.07,202.05,201.97,7.37]
[1756550175672,455.4,202.08,201.97,7.37]
[1756550175877,457.81913125,202.08,201.97,7.37]
[1756550176177,0.07,202.07,201.97,7.37]
[1756550176379,2.48913125,202.07,201.97,7.37]
[1756550176574,332.58,202.08,202.0,7.37]
[1756550177578,0.07,202.09,202.0,7.37]
[1756550178876,0.07,202.06,202.0,7.37]
[1756550179472,2.41913125,202.07,202.0,7.37]
[1756550180475,2.48913125,202.07,202.0,7.37]
[1756550181874,2.41913125,202.09,202.0,7.37]
[1756550182780,2.41913125,202.09,202.01,7.37]
[1756550183079,2.41913125,202.11,202.01,7.37]
[1756550183279,2.41913125,202.11,202.01,4.15784204]
[1756550183479,2.41913125,202.11,202.02,7.37]
[1756550185179,2.41913125,202.11,202.04,7.37]
[1756550185380,24.44,202.13,202.04,7.37]
[1756550187178,0.09,202.15,202.06,2.41913125]
[1756550187377,332.7,202.2,202.1,7.37]
[1756550187378,0.09,202.19,202.1,7.37]
[1756550189982,2.41913125,202.2,202.1,7.37]
[1756550190181,122.72,202.22,202.13,7.37]
[1756550190585,0.09,202.19,202.13,7.37]
[1756550191080,2.50913125,202.19,202.13,7.37]
[1756550191480,2.41913125,202.21,202.13,7.37]
[1756550191784,122.72,202.22,202.13,7.37]
[1756550191984,125.13913125,202.22,202.13,7.37]
[1756550192590,0.09,202.21,202.13,7.37]
[1756550192779,2.41913125,202.19,202.13,7.37]
[1756550192977,2.50913125,202.19,202.13,7.37]
[1756550193484,122.72,202.22,202.07,7.37]
[1756550193485,0.09,202.15,202.07,7.37]
[1756550193881,0.09,202.12,202.02,7.37]
[1756550195087,2.41913125,202.1,202.02,7.37]
[1756550197387,2.41913125,202.13,202.02,7.37]
[1756550198485,2.41913125,202.1,202.02,7.37]
[1756550201189,0.07,202.19,202.02,4.4545]
[1756550201395,2.41913125,202.13,202.03,10.10913125]
[1756550201695,2.41913125,202.13,202.04,7.69]
[1756550202495,2.48913125,202.13,202.04,7.69]
[1756550203694,0.07,202.12,202.04,7.69]
[1756550209502,2.41913125,202.13,202.04,7.69]
[1756550210195,0.07,202.15,202.04,6.87323125]
[1756550210403,0.07,202.15,202.06,7.69]
[1756550210900,0.07,202.22,202.11,7.69]
[1756550211105,0.07,202.19,202.11,7.69]
[1756550213106,2.48913125,202.17,202.11,7.69]